bitfinex-derivatives/quotes_SOLF0:USTF0_20250904
["timestamp","ask_amount","ask_price","bid_price","bid_amount"]
[1757017782887,4.4,203.86,203.78,3.83163816]
[1757017783186,3.03630714,203.87,203.77,7.33]
[1757017783391,4.4,203.86,203.78,3.83171886]
[1757017783588,4.4,203.86,203.77,7.33]
[1757017783789,4.4,203.86,203.78,3.83171886]
[1757017784089,3.03630714,203.87,203.77,7.33]
[1757017784281,4.4,203.86,203.78,3.83206834]
[1757017784480,4.4,203.86,203.77,7.33]
[1757017784680,4.4,203.86,203.78,3.83164018]
[1757017784880,4.4,203.86,203.77,7.33]
[1757017785082,4.4,203.86,203.78,3.83164018]
[1757017785291,3.03630714,203.87,203.77,7.33]
[1757017785490,4.4,203.86,203.78,3.83121683]
[1757017785693,4.42,203.86,203.77,7.33]
[1757017785893,4.42,203.86,203.78,3.83130689]
[1757017786094,4.42,203.86,203.77,7.33]
[1757017787587,3.03630714,203.87,203.77,7.33]
[1757017787789,4.4,203.86,203.77,7.33]
[1757017788095,3.03630714,203.87,203.77,7.33]
[1757017788392,4.4,203.86,203.77,7.33]
[1757017788589,3.03630714,203.87,203.77,7.33]
[1757017788789,4.39,203.86,203.77,7.33]
[1757017789991,3.03630714,203.87,203.77,7.33]
[1757017790186,4.39,203.83,203.77,7.33]
[1757017792295,4.39,203.92,203.79,7.32]
[1757017792489,4.39,203.92,203.81,7.32]
[1757017792695,4.39,203.92,203.83,7.32]
[1757017793194,7.42630714,203.92,203.84,4.62298681]
[1757017793393,7.42630714,203.92,203.86,7.32]
[1757017797793,3.03630714,203.92,203.86,7.32]
[1757017798020,4.39,203.91,203.86,7.32]
[1757017798396,3.03630714,203.92,203.86,7.32]
[1757017798597,4.39,203.91,203.86,7.32]
[1757017799119,4.39,203.91,203.8,3.03630714]
[1757017799120,3.03630714,203.92,203.8,3.03630714]
[1757017799302,4.39,203.91,203.82,7.32]
[1757017799500,4.39,203.91,203.84,7.32]
[1757017804296,7.42630714,203.89,203.77,3.03630714]
[1757017804497,0.85392486,203.93,203.76,7.32]
[1757017804498,3.03630714,203.83,203.78,8.86752874]
[1757017804805,4.39,203.79,203.76,7.32]
[1757017805001,14.75,203.87,203.69,7.32]
[1757017805194,14.75,203.87,203.77,3.03630714]
[1757017805195,4.39,203.87,203.77,3.03630714]
[1757017805399,3.03630714,203.86,203.79,7.32]
[1757017805601,7.42630714,203.83,203.79,7.32]
[1757017805901,4.39,203.83,203.79,7.32]
[1757017806099,3.03630714,203.84,203.74,7.32]
[1757017806296,340.49392486,203.93,203.77,7.32]
[1757017806297,4.39,203.92,203.77,7.32]
[1757017806500,3.03630714,203.89,203.78,3.81446025]
[1757017806699,3.03630714,203.89,203.76,3.03630714]
[1757017806700,7.42630714,203.89,203.8,7.32]
[1757017806907,3.03630714,203.86,203.8,7.32]
[1757017809602,7.42630714,203.83,203.8,7.32]
[1757017810707,7.42630714,203.83,203.73,7.32]
[1757017810899,7.42630714,203.83,203.75,7.32]
[1757017812513,3.03630714,203.8,203.71,7.32]
[1757017812706,3.03630714,203.8,203.73,7.32]
[1757017813008,17.78630714,203.9,203.73,7.32]
[1757017813009,3.03630714,203.77,203.73,7.32]
[1757017813313,3.03630714,203.77,203.68,7.32]
[1757017813508,3.03630714,203.77,203.69,3.8198482]
[1757017813715,3.03630714,203.77,203.7,11.1398482]
[1757017814013,3.03630714,203.77,203.71,3.8198482]
[1757017814218,3.03630714,203.77,203.67,7.32]
[1757017814406,3.03630714,203.77,203.69,7.32]
[1757017814607,3.03630714,203.77,203.71,7.32]
[1757017814807,3.03630714,203.74,203.66,7.32]
[1757017815113,4.39,203.7,203.61,4.08376262]
[1757017815410,4.39,203.7,203.63,7.32]
[1757017815611,4.39,203.7,203.64,3.82095913]
[1757017815914,4.39,203.7,203.65,3.82095913]
[1757017816113,4.39,203.7,203.61,7.32]
[1757017816313,4.39,203.7,203.63,7.32]
[1757017816506,3.03630714,203.71,203.65,7.32]
[1757017817604,7.42630714,203.68,203.61,7.32]
[1757017817807,7.42630714,203.68,203.62,3.82060632]
[1757017818007,4.44,203.67,203.63,7.87]
[1757017818213,4.44,203.71,203.6,7.87]
[1757017818419,4.44,203.71,203.57,3.03630714]
[1757017818420,7.47630714,203.71,203.62,7.87]
[1757017818714,7.47630714,203.71,203.64,7.87]
[1757017818715,3.03630714,203.71,203.64,7.87]
[1757017819715,7.47630714,203.74,203.64,7.87]
[1757017820016,14.75,203.82,203.63,3.03630714]
[1757017820017,3.03630714,203.76,203.66,7.87]
[1757017820616,3.03630714,203.76,203.68,7.87]
[1757017824315,4.4,203.75,203.68,7.87]
[1757017826421,3.03630714,203.78,203.68,7.87]
[1757017828214,3.03630714,203.75,203.68,7.87]
[1757017828413,7.43630714,203.75,203.68,7.87]
[1757017829020,3.03630714,203.78,203.62,32.67587202]
[1757017829021,7.43630714,203.72,203.62,32.67587202]
[1757017829219,7.43630714,203.72,203.63,11.68587202]
[1757017829515,7.43630714,203.72,203.63,7.87]
[1757017829921,3.03630714,203.69,203.63,7.87]
[1757017830518,3.03630714,203.72,203.63,7.87]
[1757017835218,4.41,203.77,203.65,3.03630714]
[1757017835423,4.41,203.77,203.66,7.87]
[1757017835424,7.44630714,203.77,203.66,7.87]
[1757017838027,7.44630714,203.74,203.66,7.87]
[1757017839420,1.94401796,203.73,203.66,9.81401796]
[1757017843337,1.94401796,203.71,203.67,7.87]
[1757017843538,1.94401796,203.71,203.66,1.94401796]
[1757017843739,1.94401796,203.71,203.67,7.87]
[1757017844237,4.41,203.74,203.67,7.87]
[1757017844432,1.94401796,203.71,203.66,1.94401796]
[1757017844632,6.35401796,203.71,203.63,1.94401796]
[1757017844841,4.41,203.69,203.64,3.81363054]
[1757017845035,6.35401796,203.69,203.66,7.87]
[1757017846737,1.94401796,203.67,203.6,7.87]
[1757017846936,1.94401796,203.65,203.62,7.87]
[1757017847344,1.94401796,203.63,203.57,7.87]
[1757017847538,1.94401796,203.63,203.59,7.87]
[1757017847738,6.35401796,203.63,203.6,11.82815983]
[1757017847939,6.35401796,203.63,203.6,8.01]
[1757017848136,1.94401796,203.63,203.6,8.01]
[1757017848941,1.94401796,203.61,203.54,4.08376262]
[1757017849141,1.94401796,203.59,203.56,8.01]
[1757017849341,1.94401796,203.59,203.57,3.81994968]
[1757017849537,1.94401796,203.59,203.53,8.01]
[1757017849768,1.94401796,203.59,203.54,3.82393757]
[1757017849955,1.94401796,203.59,203.56,8.01]
[1757017850335,1.94401796,203.59,203.57,3.82262595]
[1757017850539,1.94401796,203.59,203.56,8.01]
[1757017850739,1.94401796,203.59,203.57,3.82262595]
[1757017850942,1.94401796,203.59,203.56,8.01]
[1757017851641,1.94401796,203.57,203.52,8.01]
[1757017851841,1.94401796,203.57,203.54,8.01]
[1757017852144,1.94401796,203.57,203.55,11.83248992]
[1757017852344,1.94401796,203.57,203.55,8.01]
[1757017852544,1.94401796,203.57,203.52,8.01]
[1757017852749,1.94401796,203.57,203.53,3.82251482]
[1757017853039,1.94401796,203.57,203.55,8.01]
[1757017853348,1.94401796,203.57,203.52,8.01]
[1757017853546,1.94401796,203.57,203.54,8.01]
[1757017853747,1.94401796,203.57,203.55,11.83302928]
[1757017853948,1.94401796,203.57,203.55,8.01]
[1757017854145,1.94401796,203.57,203.56,3.82389278]
[1757017854345,4.41,203.59,203.56,3.82389278]
[1757017854346,138.75,203.7,203.56,3.82389278]
[1757017854651,1.94401796,203.61,203.55,8.01]
[1757017854847,1.94401796,203.61,203.57,8.01]
[1757017855047,1.94401796,203.62,203.58,3.82282287]
[1757017855350,1.94401796,203.62,203.56,1.94401796]
[1757017855549,6.35401796,203.62,203.58,8.01]
[1757017856749,6.35401796,203.62,203.55,8.01]
[1757017856750,1.94401796,203.62,203.55,8.01]
[1757017856944,4.41,203.65,203.57,8.01]
[1757017856945,1.94401796,203.61,203.57,8.01]
[1757017857148,1.94401796,203.61,203.58,11.83429457]
[1757017857354,1.94401796,203.61,203.58,8.01]
[1757017857744,1.94401796,203.59,203.53,14.02047258]
[1757017857948,1.94401796,203.59,203.55,8.01]
[1757017858150,1.94401796,203.59,203.57,8.01]
[1757017858854,14.75,203.72,203.54,8.01]
[1757017858855,1.94401796,203.6,203.54,8.01]
[1757017859054,1.94401796,203.6,203.56,8.01]
[1757017859257,1.94401796,203.6,203.58,8.01]
[1757017859856,1.94401796,203.6,203.56,8.01]
[1757017860055,1.94401796,203.6,203.57,3.82492822]
[1757017860258,1.94401796,203.6,203.55,1.94401796]
[1757017860458,1.94401796,203.6,203.57,8.01]
[1757017860749,1.94401796,203.6,203.58,3.82442288]
[1757017860944,1.94401796,203.6,203.56,8.01]
[1757017861149,1.94401796,203.6,203.57,3.82442288]
[1757017861350,1.94401796,203.6,203.59,8.01]
[1757017861558,1.94401796,203.6,203.56,8.01]
[1757017861856,6.35401796,203.6,203.56,8.01]
[1757017862054,1.94401796,203.6,203.54,8.01]
[1757017862249,1.94401796,203.6,203.55,3.82377326]
[1757017862454,6.35401796,203.63,203.56,3.82377326]
[1757017862654,6.35401796,203.63,203.57,8.01]
[1757017863053,4.41,203.63,203.57,8.01]
[1757017863256,4.41,203.63,203.54,1.94401796]
[1757017863257,1.94401796,203.6,203.55,8.01]
[1757017863455,1.94401796,203.6,203.57,8.01]
[1757017863755,1.94401796,203.6,203.55,8.01]
[1757017863955,1.94401796,203.6,203.56,3.82202403]
[1757017864260,4.41,203.59,203.53,8.01]
[1757017864460,1.94401796,203.6,203.54,3.82206615]
[1757017864657,1.94401796,203.6,203.56,8.01]
[1757017864957,1.94401796,203.6,203.55,3.82206615]
[1757017864958,1.94401796,203.62,203.55,8.01]
[1757017865161,1.94401796,203.62,203.56,3.82203239]
[1757017865360,1.94401796,203.62,203.55,8.01]
[1757017865661,4.41,203.63,203.57,8.01]
[1757017865857,1.94401796,203.64,203.58,5.76481203]
[1757017866058,1.94401796,203.66,203.59,11.83079407]
[1757017866258,1.94401796,203.66,203.6,3.82079407]
[1757017866458,1.94401796,203.66,203.59,8.01]
[1757017866763,1.94401796,203.66,203.6,3.81974039]
[1757017866962,1.94401796,203.66,203.59,8.01]
[1757017867360,1.94401796,203.64,203.58,8.01]
[1757017868160,1.94401796,203.62,203.58,8.01]
[1757017868463,4.41,203.61,203.58,8.01]
[1757017868659,1.94401796,203.6,203.54,8.01]
[1757017868856,1.94401796,203.6,203.55,3.82183288]
[1757017869056,1.94401796,203.6,203.56,3.82183288]
[1757017869264,1.94401796,203.62,203.58,8.01]
[1757017869459,1.94401796,203.62,203.56,8.01]
[1757017869666,1.94401796,203.62,203.58,8.01]
[1757017869859,1.94401796,203.62,203.56,8.01]
[1757017870058,1.94401796,203.62,203.58,8.01]
[1757017870261,1.94401796,203.62,203.55,1.94401796]
[1757017870262,6.35401796,203.62,203.59,3.82138099]
[1757017870563,6.35401796,203.62,203.56,8.01]
[1757017870764,1.94401796,203.62,203.58,8.01]
[1757017870965,1.94401796,203.62,203.56,8.01]
[1757017871159,1.94401796,203.62,203.58,8.01]
[1757017871360,1.94401796,203.62,203.56,8.01]
[1757017871665,1.94401796,203.62,203.57,3.82220808]
[1757017871965,1.94401796,203.62,203.59,8.01]
[1757017872968,6.35401796,203.62,203.59,8.01]
[1757017874462,1.94401796,203.6,203.54,9.95401796]
[1757017874662,1.94401796,203.6,203.55,3.82344757]
[1757017874886,1.94401796,203.6,203.56,3.82344757]
[1757017875066,1.94401796,203.6,203.57,11.83344757]
[1757017875263,1.94401796,203.6,203.58,3.82344757]
[1757017875466,1.94401796,203.59,203.57,8.01]
[1757017878074,1.94401796,203.59,203.53,7.55]
[1757017878269,1.94401796,203.59,203.54,3.82367389]
[1757017878472,42.93,203.7,203.56,7.55]
[1757017878667,1.94401796,203.6,203.57,3.82367389]
[1757017878873,4.41,203.63,203.56,1.94401796]
[1757017879075,6.35401796,203.63,203.57,11.3721665]
[1757017879276,14.75,203.72,203.59,7.55]
[1757017879277,1.94401796,203.65,203.59,7.55]
[1757017879573,1.94401796,203.65,203.61,7.55]
[1757017879769,1.94401796,203.65,203.58,1.94401796]
[1757017879770,1.94401796,203.65,203.59,7.55]
[1757017879970,4.4,203.68,203.6,3.82056853]
[1757017880165,6.34401796,203.66,203.62,7.55]
[1757017880670,6.34401796,203.66,203.6,7.55]
[1757017880868,6.34401796,203.66,203.61,3.82049724]
[1757017881096,6.34401796,203.66,203.6,7.55]
[1757017881264,6.34401796,203.66,203.61,3.82146409]
[1757017881469,6.34401796,203.66,203.6,7.55]
[1757017881671,1.94401796,203.65,203.62,7.55]
[1757017882468,6.34401796,203.65,203.62,7.55]
[1757017884880,1.94401796,203.65,203.59,7.55]
[1757017885176,1.94401796,203.63,203.6,3.82481772]
[1757017885376,1.94401796,203.61,203.58,7.55]
[1757017885679,1.94401796,203.61,203.59,11.37695108]
[1757017885874,1.94401796,203.61,203.6,3.82695108]
[1757017886978,6.34401796,203.61,203.6,3.82695108]
[1757017887378,1.94401796,203.61,203.6,11.37695108]
[1757017887574,1.94401796,203.61,203.6,3.82695108]
[1757017889981,6.34401796,203.61,203.6,3.82695108]
[1757017890180,4.4,203.6,203.55,4.0690579]
[1757017890484,1.94401796,203.57,203.56,7.55]
[1757017890671,1.94401796,203.57,203.54,11.6190579]
[1757017892782,1.94401796,203.55,203.54,11.6190579]
[1757017894183,1.94401796,203.55,203.54,7.55]
[1757017894578,1.94401796,203.57,203.52,4.0690579]
[1757017894780,1.94401796,203.57,203.53,7.55]
[1757017895077,1.94401796,203.57,203.52,4.0690579]
[1757017895078,1.94401796,203.55,203.52,7.55]
[1757017895277,1.94401796,203.55,203.5,4.0690579]
[1757017895480,1.94401796,203.51,203.49,7.55]
[1757017896577,1.94401796,203.51,203.42,52.34]
[1757017896578,6.34401796,203.51,203.47,7.55]
[1757017896777,6.34401796,203.51,203.45,4.0690579]
[1757017897282,1.94401796,203.47,203.45,7.55]
[1757017897482,1.94401796,203.47,203.42,4.0690579]
[1757017897683,1.94401796,203.49,203.43,7.55]
[1757017899485,3.04486998,203.5,203.43,7.55]
[1757017899686,4.4,203.49,203.43,7.55]
[1757017908300,4.41,203.49,203.37,8.06]
[1757017908602,3.04486998,203.47,203.37,8.06]
[1757017909102,4.41,203.49,203.38,8.06]
[1757017909301,7.45486998,203.49,203.38,8.06]
[1757017912100,3.04486998,203.51,203.41,8.06]
[1757017914807,4.41,203.52,203.41,8.06]
[1757017915008,7.45486998,203.52,203.41,8.06]
[1757017916609,4.41,203.48,203.41,8.06]
[1757017923011,14.78,203.54,203.41,8.06]
[1757017923208,3.04486998,203.52,203.41,8.06]
[1757017923515,4.41,203.48,203.41,8.06]
[1757017925712,3.04486998,203.46,203.41,8.06]
[1757017926017,4.41,203.45,203.41,8.06]
[1757017926412,3.04486998,203.46,203.35,8.06]
[1757017926817,7.45486998,203.49,203.38,8.06]
[1757017927517,7.45486998,203.49,203.39,8.06]
[1757017928520,7.45486998,203.49,203.36,4.06280621]
[1757017928521,4.41,203.52,203.41,3.04486998]
[1757017928716,4.41,203.52,203.42,8.06]
[1757017930308,3.04486998,203.53,203.42,8.06]
[1757017930514,7.45486998,203.5,203.42,8.06]
[1757017933320,4.41,203.46,203.39,8.06]
[1757017935921,3.04486998,203.5,203.4,11.10486998]
[1757017936220,3.04486998,203.5,203.41,8.06]
[1757017936422,4.41,203.51,203.41,8.06]
[1757017936714,4.41,203.51,203.42,8.06]
[1757017938120,4.41,203.51,203.42,12.12280621]
[1757017938312,4.41,203.51,203.43,7.98]
[1757017939120,4.41,203.51,203.43,12.04280621]
[1757017940522,4.41,203.51,203.44,7.98]
[1757017941126,7.45486998,203.54,203.44,7.98]
[1757017941720,4.41,203.53,203.44,7.98]
[1757017942222,4.41,203.53,203.44,12.04280621]
[1757017942718,4.41,203.53,203.44,4.06280621]
[1757017942933,4.41,203.53,203.45,7.98]
[1757017943519,0.03159441,203.51,203.45,7.98]
[1757017943724,4.44159441,203.51,203.48,7.98]
[1757017947831,4.41,203.5,203.47,0.03554737]
[1757017948226,0.03159441,203.51,203.47,0.03554737]
[1757017948730,3.07646439,203.51,203.47,0.03554737]
[1757017948922,4.41,203.5,203.47,0.03554737]
[1757017949228,4.41,203.5,203.47,8.01554737]
[1757017950527,4.41,203.5,203.47,0.03554737]
[1757017950830,0.03159441,203.51,203.47,0.03554737]
[1757017951130,0.03159441,203.51,203.48,7.98]
[1757017951728,4.44159441,203.51,203.48,7.98]
[1757017954934,0.03159441,203.51,203.47,0.03554737]
[1757017955229,0.03159441,203.51,203.48,7.98]
[1757017956226,4.44159441,203.51,203.48,7.98]
[1757017957435,0.03159441,203.51,203.48,7.98]
[1757017957636,4.41,203.5,203.48,7.98]
[1757017958032,4.41,203.5,203.47,0.03554737]
[1757017958338,4.41,203.5,203.41,7.98]
[1757017958339,7.45486998,203.48,203.41,7.98]
[1757017958541,4.41,203.44,203.41,7.98]
[1757017958739,3.04486998,203.45,203.38,7.98]
[1757017959537,1.94958853,203.44,203.38,7.98]
[1757017959737,1.98360589,203.44,203.38,7.98]
[1757017960538,1.98360589,203.44,203.38,9.92958853]
[1757017960734,0.03401736,203.44,203.38,9.92958853]
[1757017960940,0.03401736,203.44,203.41,7.98]
[1757017961540,0.03401736,203.44,203.4,1.94958853]
[1757017961742,0.03401736,203.44,203.41,7.98]
[1757017962140,0.03401736,203.44,203.4,1.94958853]
[1757017962437,1.98360589,203.44,203.39,7.98]
[1757017962638,0.03401736,203.44,203.4,1.94958853]
[1757017963050,0.03401736,203.44,203.38,4.06280621]
[1757017963346,1.94958853,203.42,203.4,7.98]
[1757017963548,0.03401736,203.44,203.38,1.94958853]
[1757017963735,1.98360589,203.44,203.38,1.94958853]
[1757017963939,1.98360589,203.44,203.39,7.98]
[1757017964346,1.98360589,203.44,203.38,1.94958853]
[1757017964541,1.98360589,203.44,203.39,7.98]
[1757017964843,1.98360589,203.44,203.38,1.94958853]
[1757017965044,1.98360589,203.44,203.38,9.92958853]
[1757017966541,1.98360589,203.44,203.38,7.98]
[1757017968547,1.94958853,203.42,203.38,7.98]
[1757017968751,1.94958853,203.42,203.37,8.05]
[1757017968951,6.39958853,203.42,203.36,9.99958853]
[1757017969153,6.39958853,203.42,203.36,8.05]
[1757017969154,1.94958853,203.4,203.36,8.05]
[1757017969451,1.94958853,203.4,203.33,4.06280621]
[1757017969452,1.94958853,203.4,203.34,8.05]
[1757017969855,0.74958853,203.4,203.35,0.03557239]
[1757017970047,0.03341129,203.39,203.36,8.05]
[1757017970350,0.03341129,203.39,203.38,8.05]
[1757017970550,0.03341129,203.39,203.35,0.03557239]
[1757017970751,0.03341129,203.39,203.35,1.98516092]
[1757017971147,0.03341129,203.39,203.36,8.05]
[1757017971753,0.03341129,203.39,203.35,1.98516092]
[1757017971941,0.03341129,203.39,203.36,8.05]
[1757017972142,0.03341129,203.39,203.35,1.98516092]
[1757017972548,0.03341129,203.39,203.36,8.05]
[1757017972752,0.03341129,203.39,203.35,1.98516092]
[1757017972953,0.03341129,203.39,203.36,8.05]
[1757017973654,0.03341129,203.39,203.35,1.98516092]
[1757017973955,0.03341129,203.39,203.36,8.05]
[1757017974355,0.03341129,203.39,203.35,1.98516092]
[1757017974545,0.03341129,203.39,203.36,8.05]
[1757017974752,0.03341129,203.39,203.35,1.98516092]
[1757017975054,0.03341129,203.39,203.36,8.05]
[1757017975749,0.03341129,203.39,203.35,0.03557239]
[1757017976256,0.03341129,203.39,203.36,8.05]
[1757017976647,0.03341129,203.39,203.35,0.03557239]
[1757017977355,0.03341129,203.39,203.36,8.05]
[1757017977857,0.03341129,203.39,203.35,0.03557239]
[1757017978045,0.03341129,203.39,203.36,8.05]
[1757017978663,0.03341129,203.39,203.35,0.03557239]
[1757017979061,0.03341129,203.39,203.36,8.05]
[1757017979462,0.03341129,203.39,203.35,0.03557239]
[1757017980161,0.03341129,203.39,203.36,8.05]
[1757017980461,0.03341129,203.39,203.35,0.03557239]
[1757017981058,0.03341129,203.39,203.36,8.05]
[1757017981259,0.03341129,203.39,203.36,9.99958853]
[1757017981754,0.03341129,203.39,203.38,9.99958853]
[1757017982665,0.03341129,203.39,203.38,8.05]
[1757017985262,0.03341129,203.39,203.35,0.03557239]
[1757017985562,0.03341129,203.39,203.36,8.05]
[1757017985775,0.03341129,203.39,203.35,0.03557239]
[1757017985963,0.03341129,203.39,203.36,9.99958853]
[1757017986164,0.03341129,203.39,203.36,1.94958853]
[1757017986470,0.03341129,203.39,203.37,8.05]
[1757017986865,0.03341129,203.39,203.35,0.03557239]
[1757017987367,0.03341129,203.39,203.36,8.05]
[1757017987768,0.03341129,203.39,203.35,0.03557239]
[1757017988659,0.03341129,203.39,203.36,8.05]
[1757017988859,0.03341129,203.39,203.35,0.03557239]
[1757017989062,0.03341129,203.39,203.36,8.05]
[1757017989265,0.03341129,203.39,203.35,0.03557239]
[1757017989466,0.03341129,203.39,203.36,8.05]
[1757017989669,0.03341129,203.39,203.35,0.03557239]
[1757017990064,0.03341129,203.39,203.36,8.05]
[1757017990570,0.03341129,203.39,203.35,0.03557239]
[1757017990968,0.03341129,203.39,203.37,8.05]
[1757017991568,4.48341129,203.39,203.35,8.08557239]
[1757017991765,1.98299982,203.39,203.35,8.08557239]
[1757017991965,4.45,203.38,203.35,8.08557239]
[1757017994371,6.39958853,203.38,203.35,8.08557239]
[1757017998778,1.94958853,203.38,203.35,8.08557239]
[1757017998974,4.42,203.37,203.35,8.08557239]
[1757017999873,4.45,203.36,203.35,0.03557239]
[1757018000474,1.94958853,203.37,203.35,0.03557239]
[1757018000974,1.94958853,203.37,203.35,7.92557239]
[1757018004271,1.94958853,203.37,203.35,0.03557239]
[1757018004486,1.94958853,203.37,203.36,7.89]
[1757018006169,4.48341129,203.39,203.36,7.89]
[1757018006375,1.94958853,203.38,203.36,7.89]
[1757018007075,6.39958853,203.38,203.36,7.89]
[1757018007780,1.94958853,203.38,203.36,7.89]
[1757018009375,6.39958853,203.38,203.36,7.89]
[1757018011475,1.94958853,203.38,203.36,7.89]
[1757018012178,6.39958853,203.38,203.36,7.89]
[1757018013276,4.45,203.38,203.36,7.89]
[1757018013470,6.39958853,203.38,203.36,7.89]
[1757018016382,4.45,203.37,203.35,0.03557239]
[1757018016578,1.94958853,203.36,203.35,0.03557239]
[1757018016773,6.39958853,203.36,203.35,0.03557239]
[1757018019484,4.45,203.36,203.35,0.03557239]
[1757018021885,4.45,203.37,203.35,0.03557239]
[1757018022083,0.03341129,203.39,203.35,0.03557239]
[1757018022279,4.48341129,203.39,203.36,7.89]
[1757018023087,4.45,203.38,203.36,7.89]
[1757018023285,4.45,203.38,203.35,0.03557239]
[1757018023486,4.45,203.36,203.35,0.03557239]
[1757018040302,4.48341129,203.39,203.36,7.58]
[1757018042306,4.45,203.38,203.36,7.58]
[1757018048602,0.03341129,203.39,203.35,0.03557239]
[1757018048803,0.03341129,203.39,203.36,7.58]
[1757018049611,0.03341129,203.39,203.35,0.03557239]
[1757018050003,0.03341129,203.39,203.36,7.58]
[1757018051108,0.03341129,203.39,203.35,0.03557239]
[1757018051308,0.03341129,203.39,203.36,7.58]
[1757018051901,0.03341129,203.39,203.35,0.03557239]
[1757018052303,0.03341129,203.39,203.36,7.58]
[1757018052510,0.03341129,203.39,203.35,0.03557239]
[1757018053512,0.03341129,203.39,203.36,7.58]
[1757018053711,0.03341129,203.39,203.35,0.03557239]
[1757018054109,0.03341129,203.39,203.36,7.58]
[1757018054310,0.03341129,203.39,203.35,0.03557239]
[1757018054908,0.03341129,203.39,203.36,7.58]
[1757018055414,0.03341129,203.39,203.35,0.03557239]
[1757018055613,0.03341129,203.39,203.36,7.58]
[1757018055809,0.03341129,203.39,203.35,0.03557239]
[1757018056017,0.03341129,203.39,203.36,7.58]
[1757018057120,0.03341129,203.39,203.35,0.03557239]
[1757018057923,0.03341129,203.39,203.36,7.81]
[1757018058318,0.03341129,203.39,203.35,0.03557239]
[1757018058712,0.03341129,203.39,203.36,7.81]
[1757018058918,0.03341129,203.39,203.35,0.03557239]
[1757018059116,0.03341129,203.39,203.36,7.81]
[1757018059323,0.03341129,203.39,203.35,0.03557239]
[1757018059523,0.03341129,203.39,203.36,7.81]
[1757018060223,4.45341129,203.39,203.35,0.03557239]
[1757018060521,4.45341129,203.39,203.36,7.81]
[1757018061027,0.03341129,203.39,203.36,7.81]
[1757018062624,0.03341129,203.39,203.37,7.81]
[1757018063224,4.42,203.48,203.38,7.81]
[1757018063425,4.42,203.48,203.41,7.81]
[1757018064426,4.42,203.48,203.42,0.03506786]
[1757018074639,4.45,203.49,203.43,7.81]
[1757018075032,0.85580435,203.5,203.43,7.81]
[1757018075938,4.45,203.49,203.43,7.81]
[1757018076137,0.85580435,203.5,203.43,7.81]
[1757018076939,4.45,203.49,203.43,7.81]
[1757018077841,0.85580435,203.5,203.43,7.81]
[1757018078037,4.45,203.49,203.43,7.81]
[1757018078941,0.85580435,203.5,203.43,7.81]
[1757018079137,4.45,203.49,203.43,7.81]
[1757018081449,6.39880227,203.49,203.43,9.75880227]
[1757018082538,6.39880227,203.49,203.43,7.81]
[1757018082735,6.39880227,203.49,203.43,9.75880227]
[1757018084739,6.39880227,203.52,203.46,7.81]
[1757018085341,4.45,203.52,203.47,9.78986721]
[1757018085540,318.72880227,203.53,203.47,1.97986721]
[1757018085741,4.45,203.52,203.47,9.78986721]
[1757018085942,318.72880227,203.53,203.47,1.97986721]
[1757018086143,4.45,203.52,203.47,9.78986721]
[1757018086342,318.72880227,203.53,203.47,1.97986721]
[1757018086543,4.45,203.52,203.47,9.78986721]
[1757018087046,318.72880227,203.53,203.47,1.97986721]
[1757018087345,4.45,203.52,203.47,9.78986721]
[1757018087537,318.72880227,203.53,203.47,1.97986721]
[1757018087936,4.45,203.52,203.47,9.58986721]
[1757018088642,318.72880227,203.53,203.47,1.97986721]
[1757018089145,4.45,203.52,203.47,1.97986721]
[1757018089441,316.78,203.53,203.48,7.61]
[1757018089646,318.72880227,203.53,203.47,1.97986721]
[1757018089941,316.78,203.53,203.47,1.97986721]
[1757018090147,318.72880227,203.53,203.47,1.97986721]
[1757018090443,4.45,203.59,203.5,7.61]
[1757018090648,4.45,203.55,203.49,9.55880227]